[Event "Titled Tuesday Blitz August 08 Early 2023"]
[White "Vifleemskaia, Svetlana"]
[Black "Ibadov, Dashgyn"]
[WhiteFideId "4129490"]
[BlackFideId "24107514"]
[WhiteElo "2383"]
[BlackElo "2524"]
[Result "1-0"]
[Round "9"]
[TimeControl "180+1"]
[Date "2023.08.08"]
[WhiteClock "0:00:06"]
[BlackClock "0:00:00"]
[Board "123"]

1. d4 {[%clk 0:03:00]}  Nf6 {[%clk 0:02:57]} 2. c4 {[%clk 0:03:01]}  c5 {[%clk 0:02:57]} 3. d5 {[%clk 0:03:00]}  d6 {[%clk 0:02:57]} 4. Nc3 {[%clk 0:03:00]}  g6 {[%clk 0:02:58]} 5. e4 {[%clk 0:02:59]}  Bg7 {[%clk 0:02:59]} 6. Nf3 {[%clk 0:02:57]}  O-O {[%clk 0:02:59]} 7. h3 {[%clk 0:02:57]}  e6 {[%clk 0:02:59]} 8. Bd3 {[%clk 0:02:53]}  exd5 {[%clk 0:02:59]} 9. cxd5 {[%clk 0:02:54]}  Re8 {[%clk 0:02:59]} 10. O-O {[%clk 0:02:54]}  Nbd7 {[%clk 0:03:00]} 11. Bf4 {[%clk 0:02:53]}  c4 {[%clk 0:02:55]} 12. Bc2 {[%clk 0:02:42]}  Nc5 {[%clk 0:02:53]} 13. e5 {[%clk 0:02:23]}  dxe5 {[%clk 0:02:35]} 14. Bxe5 {[%clk 0:02:13]}  Nh5 {[%clk 0:01:14]} 15. Bxg7 {[%clk 0:02:09]}  Nxg7 {[%clk 0:01:15]} 16. Qd4 {[%clk 0:02:07]}  b6 {[%clk 0:01:07]} 17. Rfe1 {[%clk 0:01:49]}  Bf5 {[%clk 0:01:05]} 18. Bxf5 {[%clk 0:01:42]}  Nxf5 {[%clk 0:01:04]} 19. Rxe8+ {[%clk 0:01:38]}  Qxe8 {[%clk 0:01:03]} 20. Qxc4 {[%clk 0:01:39]}  Rc8 {[%clk 0:00:58]} 21. Rd1 {[%clk 0:01:33]}  Qd7 {[%clk 0:00:40]} 22. Ne5 {[%clk 0:01:24]}  Qd6 {[%clk 0:00:38]} 23. Nc6 {[%clk 0:01:21]}  Re8 {[%clk 0:00:34]} 24. Nxa7 {[%clk 0:01:15]}  Qf6 {[%clk 0:00:29]} 25. Nc6 {[%clk 0:01:03]}  Qg5 {[%clk 0:00:28]} 26. Qg4 {[%clk 0:01:00]}  Qf6 {[%clk 0:00:23]} 27. Nd4 {[%clk 0:00:56]}  Nd6 {[%clk 0:00:10]} 28. Qf3 {[%clk 0:00:46]}  Qg5 {[%clk 0:00:07]} 29. Qg4 {[%clk 0:00:29]}  Qf6 {[%clk 0:00:06]} 30. Nf3 {[%clk 0:00:26]}  Kg7 {[%clk 0:00:01]} 31. Qd4 {[%clk 0:00:26]}  Qxd4 {[%clk 0:00:02]} 32. Nxd4 {[%clk 0:00:20]}  h5 {[%clk 0:00:01]} 33. g3 {[%clk 0:00:19]}  Kf6 {[%clk 0:00:01]} 34. Kg2 {[%clk 0:00:19]}  g5 {[%clk 0:00:01]} 35. Ndb5 {[%clk 0:00:16]}  Ndb7 {[%clk 0:00:01]} 36. d6 {[%clk 0:00:14]}  Nd7 {[%clk 0:00:01]} 37. Rd4 {[%clk 0:00:11]}  Re5 {[%clk 0:00:02]} 38. f4 {[%clk 0:00:08]}  gxf4 {[%clk 0:00:02]} 39. gxf4 {[%clk 0:00:07]}  Rc5 {[%clk 0:00:01]} 40. Nc7 {[%clk 0:00:05]}  Rc6 {[%clk 0:00:01]} 41. N7d5+ {[%clk 0:00:05]}  Ke6 {[%clk 0:00:01]} 42. Ne3 {[%clk 0:00:04]}  Rxd6 {[%clk 0:00:01]} 43. Rxd6+ {[%clk 0:00:04]}  Kxd6 {[%clk 0:00:02]} 44. Kf3 {[%clk 0:00:05]}  Nbc5 {[%clk 0:00:02]} 45. Nf5+ {[%clk 0:00:05]}  Ke6 {[%clk 0:00:02]} 46. Ng7+ {[%clk 0:00:05]}  Kd6 {[%clk 0:00:02]} 47. Nxh5 {[%clk 0:00:06]}  Nd3 {[%clk 0:00:02]} 48. b3 {[%clk 0:00:04]}  Kc5 {[%clk 0:00:02]} 49. Ng3 {[%clk 0:00:04]}  Kb4 {[%clk 0:00:02]} 50. Nd5+ {[%clk 0:00:04]}  Ka3 {[%clk 0:00:02]} 51. Ke3 {[%clk 0:00:03]}  Nc1 {[%clk 0:00:02]} 52. Kd4 {[%clk 0:00:02]}  Nxa2 {[%clk 0:00:03]} 53. b4 {[%clk 0:00:02]}  Nxb4 {[%clk 0:00:02]} 54. Nxb4 {[%clk 0:00:02]}  Kxb4 {[%clk 0:00:03]} 55. h4 {[%clk 0:00:03]}  Nf6 {[%clk 0:00:03]} 56. h5 {[%clk 0:00:03]}  Ka4 {[%clk 0:00:04]} 57. h6 {[%clk 0:00:03]}  b5 {[%clk 0:00:04]} 58. Ne4 {[%clk 0:00:03]}  Nh7 {[%clk 0:00:04]} 59. Nc5+ {[%clk 0:00:03]}  Ka3 {[%clk 0:00:04]} 60. Kc3 {[%clk 0:00:02]}  b4+ {[%clk 0:00:04]} 61. Kc4 {[%clk 0:00:02]}  f5 {[%clk 0:00:02]} 62. Nb3 {[%clk 0:00:02]}  Ka4 {[%clk 0:00:02]} 63. Nd4 {[%clk 0:00:03]}  Ka3 {[%clk 0:00:02]} 64. Nc2+ {[%clk 0:00:03]}  Ka4 {[%clk 0:00:02]} 65. Nxb4 {[%clk 0:00:04]}  Ka5 {[%clk 0:00:02]} 66. Nd5 {[%clk 0:00:04]}  Nf8 {[%clk 0:00:01]} 67. Kd4 {[%clk 0:00:05]}  Kb5 {[%clk 0:00:01]} 68. Ke5 {[%clk 0:00:05]}  Kc5 {[%clk 0:00:00]} 69. Nf6 {[%clk 0:00:06]} 1-0


[Site "https://www.chess.com"]

[Event "Titled Tuesday Blitz August 08 Early 2023"]
[White "Sreyas Payyappat"]
[Black "Kanyamarala, Trisha"]
[WhiteFideId "46674969"]
[BlackFideId "45004722"]
[WhiteElo "2515"]
[BlackElo "2364"]
[Result "1-0"]
[Round "9"]
[TimeControl "180+1"]
[Date "2023.08.08"]
[WhiteClock "0:00:17"]
[BlackClock "0:00:00"]
[Board "126"]

1. e4 {[%clk 0:03:00]}  c5 {[%clk 0:02:58]} 2. Nf3 {[%clk 0:03:01]}  d6 {[%clk 0:02:58]} 3. d4 {[%clk 0:03:02]}  cxd4 {[%clk 0:02:58]} 4. Nxd4 {[%clk 0:03:03]}  Nf6 {[%clk 0:02:58]} 5. Nc3 {[%clk 0:03:03]}  a6 {[%clk 0:02:58]} 6. h4 {[%clk 0:03:03]}  Nc6 {[%clk 0:02:56]} 7. h5 {[%clk 0:03:02]}  h6 {[%clk 0:02:55]} 8. f3 {[%clk 0:03:01]}  e5 {[%clk 0:02:53]} 9. Nb3 {[%clk 0:03:00]}  Be6 {[%clk 0:02:53]} 10. Be3 {[%clk 0:02:58]}  d5 {[%clk 0:02:49]} 11. exd5 {[%clk 0:02:52]}  Nxd5 {[%clk 0:02:49]} 12. Nxd5 {[%clk 0:02:53]}  Bxd5 {[%clk 0:02:50]} 13. Qd2 {[%clk 0:02:52]}  Bb4 {[%clk 0:02:40]} 14. c3 {[%clk 0:02:51]}  Be7 {[%clk 0:02:39]} 15. O-O-O {[%clk 0:02:50]}  Bxb3 {[%clk 0:02:32]} 16. axb3 {[%clk 0:02:51]}  Qa5 {[%clk 0:02:29]} 17. Bc4 {[%clk 0:02:44]}  O-O {[%clk 0:02:18]} 18. Bxh6 {[%clk 0:02:29]}  gxh6 {[%clk 0:01:57]} 19. Qxh6 {[%clk 0:02:30]}  e4 {[%clk 0:01:57]} 20. f4 {[%clk 0:01:40]}  Qf5 {[%clk 0:01:45]} 21. Rh3 {[%clk 0:01:34]}  Qh7 {[%clk 0:01:28]} 22. Qxh7+ {[%clk 0:01:20]}  Kxh7 {[%clk 0:01:28]} 23. Rd7 {[%clk 0:01:21]}  Rad8 {[%clk 0:01:11]} 24. Rxb7 {[%clk 0:01:20]}  Bd6 {[%clk 0:01:03]} 25. Bxf7 {[%clk 0:01:08]}  Bxf4+ {[%clk 0:01:00]} 26. Kb1 {[%clk 0:01:08]}  Kh6 {[%clk 0:00:27]} 27. Bg6 {[%clk 0:01:04]}  Rd1+ {[%clk 0:00:17]} 28. Ka2 {[%clk 0:01:03]}  Ne5 {[%clk 0:00:14]} 29. Bxe4 {[%clk 0:00:46]}  Re1 {[%clk 0:00:14]} 30. Rb6+ {[%clk 0:00:42]}  Kg5 {[%clk 0:00:13]} 31. Bf3 {[%clk 0:00:34]}  Nd3 {[%clk 0:00:11]} 32. Rg6+ {[%clk 0:00:30]}  Kf5 {[%clk 0:00:11]} 33. Bg4+ {[%clk 0:00:31]}  Ke4 {[%clk 0:00:09]} 34. Re6+ {[%clk 0:00:30]}  Be5 {[%clk 0:00:07]} 35. Bf3+ {[%clk 0:00:19]}  Kf5 {[%clk 0:00:07]} 36. Bd5 {[%clk 0:00:19]}  Nc1+ {[%clk 0:00:06]} 37. Ka3 {[%clk 0:00:18]}  Ne2 {[%clk 0:00:05]} 38. Rf3+ {[%clk 0:00:17]}  Nf4 {[%clk 0:00:02]} 39. g3 {[%clk 0:00:17]}  Kg4 {[%clk 0:00:00]} 40. gxf4 {[%clk 0:00:17]} 1-0


[Site "https://www.chess.com"]

[Event "Titled Tuesday Blitz August 08 Early 2023"]
[White "Melikhov, Evgeny V."]
[Black "Chor, Kevin"]
[WhiteFideId "4122046"]
[BlackFideId "2090740"]
[WhiteElo "2358"]
[BlackElo "2509"]
[Result "1-0"]
[Round "9"]
[TimeControl "180+1"]
[Date "2023.08.08"]
[WhiteClock "0:00:19"]
[BlackClock "0:00:03"]
[Board "127"]

1. d4 {[%clk 0:03:00]}  Nf6 {[%clk 0:02:58]} 2. c4 {[%clk 0:03:00]}  g6 {[%clk 0:02:59]} 3. Nc3 {[%clk 0:03:01]}  Bg7 {[%clk 0:03:00]} 4. e4 {[%clk 0:03:01]}  d6 {[%clk 0:03:00]} 5. f3 {[%clk 0:03:01]}  O-O {[%clk 0:03:00]} 6. Be3 {[%clk 0:03:02]}  Na6 {[%clk 0:02:58]} 7. Bd3 {[%clk 0:03:01]}  e5 {[%clk 0:02:53]} 8. d5 {[%clk 0:02:58]}  Nc5 {[%clk 0:02:48]} 9. Bc2 {[%clk 0:02:58]}  a5 {[%clk 0:02:47]} 10. Nge2 {[%clk 0:02:55]}  Nh5 {[%clk 0:02:46]} 11. Qd2 {[%clk 0:02:53]}  f5 {[%clk 0:02:39]} 12. exf5 {[%clk 0:02:51]}  gxf5 {[%clk 0:02:40]} 13. O-O-O {[%clk 0:02:49]}  Bd7 {[%clk 0:02:22]} 14. h3 {[%clk 0:02:46]}  Nf6 {[%clk 0:02:16]} 15. g4 {[%clk 0:02:45]}  f4 {[%clk 0:02:13]} 16. Bxc5 {[%clk 0:02:38]}  dxc5 {[%clk 0:02:12]} 17. Ne4 {[%clk 0:02:37]}  Qe7 {[%clk 0:02:00]} 18. N2c3 {[%clk 0:02:34]}  Ne8 {[%clk 0:01:52]} 19. d6 {[%clk 0:02:26]}  cxd6 {[%clk 0:01:47]} 20. Nxd6 {[%clk 0:02:26]}  Bc6 {[%clk 0:01:40]} 21. Nf5 {[%clk 0:02:14]}  Qf7 {[%clk 0:01:31]} 22. Be4 {[%clk 0:02:11]}  Qxc4 {[%clk 0:01:20]} 23. Ne7+ {[%clk 0:02:08]}  Kh8 {[%clk 0:01:19]} 24. Nxc6 {[%clk 0:02:08]}  bxc6 {[%clk 0:01:20]} 25. Bxc6 {[%clk 0:02:08]}  Rb8 {[%clk 0:01:18]} 26. b3 {[%clk 0:01:36]}  Qa6 {[%clk 0:01:03]} 27. Bxe8 {[%clk 0:01:25]}  Rfxe8 {[%clk 0:00:59]} 28. Qd3 {[%clk 0:01:25]}  c4 {[%clk 0:00:44]} 29. Qxc4 {[%clk 0:01:23]}  Qb7 {[%clk 0:00:41]} 30. Qd5 {[%clk 0:01:16]}  Qb4 {[%clk 0:00:41]} 31. Ne4 {[%clk 0:01:12]}  a4 {[%clk 0:00:40]} 32. Rd3 {[%clk 0:01:01]}  axb3 {[%clk 0:00:31]} 33. Rxb3 {[%clk 0:00:59]}  Rbc8+ {[%clk 0:00:31]} 34. Kb1 {[%clk 0:00:59]}  Qa4 {[%clk 0:00:25]} 35. Rd1 {[%clk 0:00:53]}  Ra8 {[%clk 0:00:19]} 36. Rd2 {[%clk 0:00:53]}  h6 {[%clk 0:00:16]} 37. Qb5 {[%clk 0:00:48]}  Qa7 {[%clk 0:00:15]} 38. Qb6 {[%clk 0:00:42]}  Qe7 {[%clk 0:00:12]} 39. Rd6 {[%clk 0:00:35]}  Qh4 {[%clk 0:00:11]} 40. Rg6 {[%clk 0:00:27]}  Qxh3 {[%clk 0:00:11]} 41. Qb7 {[%clk 0:00:25]}  Qf1+ {[%clk 0:00:09]} 42. Kb2 {[%clk 0:00:23]}  Qe2+ {[%clk 0:00:08]} 43. Kc3 {[%clk 0:00:21]}  Rec8+ {[%clk 0:00:04]} 44. Rc6 {[%clk 0:00:21]}  Rxc6+ {[%clk 0:00:03]} 45. Qxc6 {[%clk 0:00:20]}  Rxa2 {[%clk 0:00:04]} 46. Qc8+ {[%clk 0:00:19]}  Kh7 {[%clk 0:00:04]} 47. Qf5+ {[%clk 0:00:19]}  Kg8 {[%clk 0:00:02]} 48. Rb8+ {[%clk 0:00:19]}  Bf8 {[%clk 0:00:02]} 49. Qxf8+ {[%clk 0:00:19]}  Kh7 {[%clk 0:00:03]} 50. Qf7# {[%clk 0:00:19]} 1-0


[Site "https://www.chess.com"]

[Event "Titled Tuesday Blitz August 08 Early 2023"]
[White "Ncatt"]
[Black "Jovic, Stanoje"]
[BlackFideId "905020"]
[WhiteElo "2344"]
[BlackElo "2489"]
[Result "1-0"]
[Round "9"]
[TimeControl "180+1"]
[Date "2023.08.08"]
[WhiteClock "0:01:12"]
[BlackClock "0:00:01"]
[Board "128"]

1. e4 {[%clk 0:03:00]}  c6 {[%clk 0:02:59]} 2. d4 {[%clk 0:03:00]}  d5 {[%clk 0:02:59]} 3. Nc3 {[%clk 0:02:59]}  dxe4 {[%clk 0:02:59]} 4. Nxe4 {[%clk 0:02:59]}  Nf6 {[%clk 0:02:59]} 5. Nxf6+ {[%clk 0:03:00]}  exf6 {[%clk 0:02:59]} 6. c3 {[%clk 0:03:00]}  Bd6 {[%clk 0:02:59]} 7. Bd3 {[%clk 0:03:01]}  O-O {[%clk 0:02:59]} 8. Qc2 {[%clk 0:03:01]}  h6 {[%clk 0:02:58]} 9. Ne2 {[%clk 0:03:02]}  Qc7 {[%clk 0:02:58]} 10. h3 {[%clk 0:03:01]}  c5 {[%clk 0:02:57]} 11. O-O {[%clk 0:03:01]}  c4 {[%clk 0:02:57]} 12. Bh7+ {[%clk 0:02:57]}  Kh8 {[%clk 0:02:57]} 13. Be4 {[%clk 0:02:58]}  Nc6 {[%clk 0:02:55]} 14. Be3 {[%clk 0:02:57]}  b5 {[%clk 0:02:53]} 15. a3 {[%clk 0:02:52]}  Bb7 {[%clk 0:02:52]} 16. Rad1 {[%clk 0:02:51]}  Rfe8 {[%clk 0:02:52]} 17. Rfe1 {[%clk 0:02:48]}  Nb4 {[%clk 0:02:46]} 18. axb4 {[%clk 0:02:39]}  Bxe4 {[%clk 0:02:46]} 19. Qd2 {[%clk 0:02:39]}  g5 {[%clk 0:02:22]} 20. d5 {[%clk 0:02:33]}  f5 {[%clk 0:02:04]} 21. f4 {[%clk 0:02:15]}  g4 {[%clk 0:01:51]} 22. h4 {[%clk 0:02:15]}  g3 {[%clk 0:01:48]} 23. Nxg3 {[%clk 0:02:13]}  Bd3 {[%clk 0:01:44]} 24. Nh5 {[%clk 0:02:08]}  Be7 {[%clk 0:01:22]} 25. Bd4+ {[%clk 0:02:05]}  Kh7 {[%clk 0:01:21]} 26. Rxe7 {[%clk 0:01:47]}  Rxe7 {[%clk 0:01:13]} 27. Nf6+ {[%clk 0:01:46]}  Kh8 {[%clk 0:00:48]} 28. d6 {[%clk 0:01:46]}  Qxd6 {[%clk 0:00:38]} 29. Qf2 {[%clk 0:01:38]}  Re2 {[%clk 0:00:31]} 30. Ne8+ {[%clk 0:01:27]}  Kh7 {[%clk 0:00:19]} 31. Nxd6 {[%clk 0:01:27]}  Rxf2 {[%clk 0:00:19]} 32. Kxf2 {[%clk 0:01:28]}  Kg6 {[%clk 0:00:16]} 33. Re1 {[%clk 0:01:24]}  a5 {[%clk 0:00:14]} 34. Nxb5 {[%clk 0:01:19]}  axb4 {[%clk 0:00:13]} 35. cxb4 {[%clk 0:01:19]}  Rb8 {[%clk 0:00:12]} 36. Re5 {[%clk 0:01:19]}  Ra8 {[%clk 0:00:10]} 37. Nc3 {[%clk 0:01:17]}  Ra1 {[%clk 0:00:10]} 38. b5 {[%clk 0:01:17]}  Kh5 {[%clk 0:00:07]} 39. Kg3 {[%clk 0:01:14]}  Rg1 {[%clk 0:00:01]} 40. Bxg1 {[%clk 0:01:12]} 1-0


[Site "https://www.chess.com"]

[Event "Titled Tuesday Blitz August 08 Early 2023"]
[White "Przybylski, Wojciech"]
[Black "Sailer, Mike"]
[WhiteFideId "1117599"]
[BlackFideId "2012901"]
[WhiteElo "2583"]
[BlackElo "2182"]
[Result "1-0"]
[Round "9"]
[TimeControl "180+1"]
[Date "2023.08.08"]
[WhiteClock "0:00:15"]
[BlackClock "0:00:02"]
[Board "132"]

1. e4 {[%clk 0:02:55]}  d5 {[%clk 0:02:59]} 2. exd5 {[%clk 0:02:52]}  Qxd5 {[%clk 0:02:59]} 3. Nc3 {[%clk 0:02:52]}  Qd6 {[%clk 0:02:59]} 4. g3 {[%clk 0:02:50]}  Nf6 {[%clk 0:02:57]} 5. Bg2 {[%clk 0:02:50]}  c6 {[%clk 0:02:52]} 6. Nge2 {[%clk 0:02:46]}  e5 {[%clk 0:02:46]} 7. d4 {[%clk 0:02:46]}  Bg4 {[%clk 0:02:36]} 8. dxe5 {[%clk 0:02:44]}  Qxe5 {[%clk 0:02:31]} 9. Bf4 {[%clk 0:02:38]}  Qa5 {[%clk 0:02:30]} 10. O-O {[%clk 0:02:34]}  Bb4 {[%clk 0:02:15]} 11. Qd3 {[%clk 0:02:23]}  O-O {[%clk 0:02:14]} 12. Nd4 {[%clk 0:02:11]}  Bxc3 {[%clk 0:02:10]} 13. bxc3 {[%clk 0:02:10]}  Na6 {[%clk 0:02:03]} 14. Bd6 {[%clk 0:02:06]}  Rfd8 {[%clk 0:01:51]} 15. Be7 {[%clk 0:01:58]}  Rd7 {[%clk 0:01:24]} 16. Bxf6 {[%clk 0:01:56]}  gxf6 {[%clk 0:01:24]} 17. Qe4 {[%clk 0:01:52]}  Bh5 {[%clk 0:01:19]} 18. Bh3 {[%clk 0:01:29]}  Bg6 {[%clk 0:01:14]} 19. Qf4 {[%clk 0:01:23]}  Re7 {[%clk 0:01:09]} 20. Qxf6 {[%clk 0:01:21]}  Rae8 {[%clk 0:01:04]} 21. Nf5 {[%clk 0:01:14]}  Bxf5 {[%clk 0:01:02]} 22. Bxf5 {[%clk 0:01:13]}  Qe5 {[%clk 0:01:01]} 23. Qg5+ {[%clk 0:01:00]}  Qg7 {[%clk 0:01:01]} 24. Qf4 {[%clk 0:00:59]}  Nc5 {[%clk 0:00:58]} 25. Rad1 {[%clk 0:00:56]}  Qxc3 {[%clk 0:00:49]} 26. Rd4 {[%clk 0:00:55]}  Ne6 {[%clk 0:00:42]} 27. Qg4+ {[%clk 0:00:51]}  Ng7 {[%clk 0:00:28]} 28. Bd3 {[%clk 0:00:50]}  Re1 {[%clk 0:00:22]} 29. Rxe1 {[%clk 0:00:44]}  Qxe1+ {[%clk 0:00:19]} 30. Kg2 {[%clk 0:00:44]}  Qe6 {[%clk 0:00:18]} 31. Qh4 {[%clk 0:00:43]}  Nf5 {[%clk 0:00:11]} 32. Rg4+ {[%clk 0:00:38]}  Kf8 {[%clk 0:00:10]} 33. Qxh7 {[%clk 0:00:33]}  Qd5+ {[%clk 0:00:09]} 34. Kh3 {[%clk 0:00:31]}  Nd4 {[%clk 0:00:03]} 35. Rg8+ {[%clk 0:00:29]}  Ke7 {[%clk 0:00:04]} 36. Qe4+ {[%clk 0:00:27]}  Qxe4 {[%clk 0:00:04]} 37. Rxe8+ {[%clk 0:00:27]}  Kxe8 {[%clk 0:00:05]} 38. Bxe4 {[%clk 0:00:27]}  Ke7 {[%clk 0:00:04]} 39. Kg2 {[%clk 0:00:26]}  f5 {[%clk 0:00:05]} 40. Bd3 {[%clk 0:00:26]}  Kd6 {[%clk 0:00:05]} 41. c3 {[%clk 0:00:25]}  Nb5 {[%clk 0:00:05]} 42. c4 {[%clk 0:00:25]}  Nd4 {[%clk 0:00:05]} 43. h4 {[%clk 0:00:25]}  Ke5 {[%clk 0:00:05]} 44. f3 {[%clk 0:00:23]}  Ne6 {[%clk 0:00:04]} 45. h5 {[%clk 0:00:22]}  a6 {[%clk 0:00:04]} 46. h6 {[%clk 0:00:22]}  Nf8 {[%clk 0:00:05]} 47. g4 {[%clk 0:00:22]}  fxg4 {[%clk 0:00:04]} 48. fxg4 {[%clk 0:00:22]}  Kf6 {[%clk 0:00:05]} 49. h7 {[%clk 0:00:21]}  Nxh7 {[%clk 0:00:05]} 50. Bxh7 {[%clk 0:00:20]}  b5 {[%clk 0:00:06]} 51. c5 {[%clk 0:00:18]}  a5 {[%clk 0:00:06]} 52. Be4 {[%clk 0:00:18]}  b4 {[%clk 0:00:05]} 53. Bxc6 {[%clk 0:00:17]}  Ke5 {[%clk 0:00:04]} 54. Ba4 {[%clk 0:00:15]}  Kd5 {[%clk 0:00:05]} 55. c6 {[%clk 0:00:16]}  Kd6 {[%clk 0:00:02]} 56. g5 {[%clk 0:00:15]} 1-0


[Site "https://www.chess.com"]

[Event "Titled Tuesday Blitz August 08 Early 2023"]
[White "only_strong_moves"]
[Black "Nithyalakshmi, Sivanesan"]
[BlackFideId "5706955"]
[WhiteElo "2556"]
[BlackElo "2343"]
[Result "1-0"]
[Round "9"]
[TimeControl "180+1"]
[Date "2023.08.08"]
[WhiteClock "0:00:22"]
[BlackClock "0:00:12"]
[Board "133"]

1. d4 {[%clk 0:03:00]}  Nf6 {[%clk 0:02:57]} 2. Nc3 {[%clk 0:03:00]}  d5 {[%clk 0:02:56]} 3. Bf4 {[%clk 0:03:01]}  c6 {[%clk 0:02:54]} 4. e3 {[%clk 0:03:01]}  g6 {[%clk 0:02:46]} 5. Nf3 {[%clk 0:03:00]}  Bg7 {[%clk 0:02:46]} 6. Ne5 {[%clk 0:03:01]}  Nh5 {[%clk 0:02:43]} 7. Be2 {[%clk 0:02:33]}  Nxf4 {[%clk 0:02:42]} 8. exf4 {[%clk 0:02:33]}  O-O {[%clk 0:02:39]} 9. h4 {[%clk 0:02:30]}  f6 {[%clk 0:02:25]} 10. Nd3 {[%clk 0:02:27]}  h6 {[%clk 0:02:16]} 11. Qd2 {[%clk 0:01:58]}  b5 {[%clk 0:01:59]} 12. O-O-O {[%clk 0:01:52]}  a5 {[%clk 0:01:57]} 13. h5 {[%clk 0:01:52]}  g5 {[%clk 0:01:57]} 14. fxg5 {[%clk 0:01:53]}  fxg5 {[%clk 0:01:56]} 15. f4 {[%clk 0:01:50]}  g4 {[%clk 0:01:40]} 16. Ne5 {[%clk 0:01:45]}  a4 {[%clk 0:01:33]} 17. a3 {[%clk 0:01:25]}  b4 {[%clk 0:01:26]} 18. axb4 {[%clk 0:01:16]}  Qd6 {[%clk 0:01:25]} 19. Na2 {[%clk 0:01:06]}  Na6 {[%clk 0:01:19]} 20. c3 {[%clk 0:01:06]}  a3 {[%clk 0:01:12]} 21. b3 {[%clk 0:01:06]}  Nc7 {[%clk 0:01:07]} 22. g3 {[%clk 0:00:58]}  Nb5 {[%clk 0:01:02]} 23. Bxg4 {[%clk 0:00:54]}  Ba6 {[%clk 0:00:42]} 24. Rhe1 {[%clk 0:00:48]}  Nc7 {[%clk 0:00:37]} 25. Be2 {[%clk 0:00:41]}  Nb5 {[%clk 0:00:36]} 26. Bd3 {[%clk 0:00:32]}  Rfb8 {[%clk 0:00:27]} 27. Bb1 {[%clk 0:00:30]}  Nc7 {[%clk 0:00:25]} 28. Qc2 {[%clk 0:00:29]}  Ne6 {[%clk 0:00:20]} 29. Qh7+ {[%clk 0:00:29]}  Kf8 {[%clk 0:00:20]} 30. Qf5+ {[%clk 0:00:25]}  Kg8 {[%clk 0:00:19]} 31. Qf7+ {[%clk 0:00:23]}  Kh8 {[%clk 0:00:18]} 32. Ng6+ {[%clk 0:00:24]}  Kh7 {[%clk 0:00:17]} 33. Nxe7+ {[%clk 0:00:24]}  Kh8 {[%clk 0:00:17]} 34. Ng6+ {[%clk 0:00:24]}  Kh7 {[%clk 0:00:12]} 35. Rxe6 {[%clk 0:00:22]} 1-0


[Site "https://www.chess.com"]

[Event "Titled Tuesday Blitz August 08 Early 2023"]
[White "amanjazu"]
[Black "Kanyamarala, Tarun"]
[BlackFideId "45004714"]
[WhiteElo "2331"]
[BlackElo "2498"]
[Result "0-1"]
[Round "9"]
[TimeControl "180+1"]
[Date "2023.08.08"]
[WhiteClock "0:00:03"]
[BlackClock "0:01:10"]
[Board "136"]

1. g3 {[%clk 0:02:48]}  Nf6 {[%clk 0:02:55]} 2. f4 {[%clk 0:02:49]}  d5 {[%clk 0:02:52]} 3. Nf3 {[%clk 0:02:49]}  c6 {[%clk 0:02:52]} 4. Bg2 {[%clk 0:02:50]}  Qb6 {[%clk 0:02:53]} 5. d4 {[%clk 0:02:47]}  g6 {[%clk 0:02:48]} 6. O-O {[%clk 0:02:48]}  Bg7 {[%clk 0:02:49]} 7. c3 {[%clk 0:02:45]}  O-O {[%clk 0:02:49]} 8. Ne5 {[%clk 0:02:45]}  Nbd7 {[%clk 0:02:49]} 9. Nd2 {[%clk 0:02:44]}  Ne8 {[%clk 0:02:48]} 10. Ndf3 {[%clk 0:02:41]}  Ndf6 {[%clk 0:02:47]} 11. h3 {[%clk 0:02:35]}  Ne4 {[%clk 0:02:46]} 12. Kh2 {[%clk 0:02:35]}  N8d6 {[%clk 0:02:44]} 13. Nd2 {[%clk 0:02:24]}  f6 {[%clk 0:02:41]} 14. Nd3 {[%clk 0:02:10]}  Nxd2 {[%clk 0:02:39]} 15. Qxd2 {[%clk 0:02:09]}  Bf5 {[%clk 0:02:40]} 16. Nc5 {[%clk 0:02:04]}  Nc4 {[%clk 0:02:36]} 17. Qe1 {[%clk 0:01:59]}  e5 {[%clk 0:02:21]} 18. fxe5 {[%clk 0:01:53]}  fxe5 {[%clk 0:02:21]} 19. e4 {[%clk 0:01:51]}  dxe4 {[%clk 0:02:19]} 20. Qe2 {[%clk 0:01:31]}  Nd6 {[%clk 0:02:13]} 21. g4 {[%clk 0:00:36]}  exd4 {[%clk 0:02:07]} 22. cxd4 {[%clk 0:00:36]}  Bxd4 {[%clk 0:02:06]} 23. Rxf5 {[%clk 0:00:32]}  Bxc5 {[%clk 0:01:58]} 24. Rg5 {[%clk 0:00:15]}  Bg1+ {[%clk 0:01:46]} 25. Kh1 {[%clk 0:00:15]}  Rae8 {[%clk 0:01:36]} 26. Bd2 {[%clk 0:00:11]}  Bd4 {[%clk 0:01:34]} 27. Bc3 {[%clk 0:00:10]}  Bxc3 {[%clk 0:01:33]} 28. bxc3 {[%clk 0:00:11]}  Rf2 {[%clk 0:01:31]} 29. Qd1 {[%clk 0:00:11]}  Rd8 {[%clk 0:01:19]} 30. Rb1 {[%clk 0:00:10]}  Qe3 {[%clk 0:01:15]} 31. Re5 {[%clk 0:00:07]}  Qg3 {[%clk 0:01:12]} 32. Qb3+ {[%clk 0:00:06]}  Kf8 {[%clk 0:01:10]} 33. Rf1 {[%clk 0:00:03]}  Qxg2# {[%clk 0:01:10]} 0-1


[Site "https://www.chess.com"]

[Event "Titled Tuesday Blitz August 08 Early 2023"]
[White "Nayak Rajesh"]
[Black "Hirneise, Jens"]
[WhiteFideId "35017152"]
[BlackFideId "24614734"]
[WhiteElo "2321"]
[BlackElo "2495"]
[Result "0-1"]
[Round "9"]
[TimeControl "180+1"]
[Date "2023.08.08"]
[WhiteClock "0:00:14"]
[BlackClock "0:00:22"]
[Board "138"]

1. e4 {[%clk 0:01:58]}  c5 {[%clk 0:02:58]} 2. Nf3 {[%clk 0:01:57]}  Nc6 {[%clk 0:02:58]} 3. b3 {[%clk 0:01:58]}  Nf6 {[%clk 0:02:56]} 4. Bb2 {[%clk 0:01:57]}  Nxe4 {[%clk 0:02:55]} 5. d4 {[%clk 0:01:57]}  d5 {[%clk 0:02:49]} 6. Bd3 {[%clk 0:01:57]}  cxd4 {[%clk 0:02:46]} 7. O-O {[%clk 0:01:57]}  e5 {[%clk 0:02:42]} 8. c4 {[%clk 0:01:57]}  dxc3 {[%clk 0:02:35]} 9. Nxc3 {[%clk 0:01:57]}  Nxc3 {[%clk 0:02:20]} 10. Bxc3 {[%clk 0:01:56]}  e4 {[%clk 0:02:19]} 11. Re1 {[%clk 0:01:54]}  Be6 {[%clk 0:02:16]} 12. Nd4 {[%clk 0:01:28]}  Nxd4 {[%clk 0:02:11]} 13. Bxd4 {[%clk 0:01:29]}  exd3 {[%clk 0:02:10]} 14. Qxd3 {[%clk 0:01:29]}  Be7 {[%clk 0:02:01]} 15. Bxg7 {[%clk 0:01:28]}  Rg8 {[%clk 0:01:58]} 16. Qxh7 {[%clk 0:01:28]}  Kd7 {[%clk 0:01:58]} 17. Rad1 {[%clk 0:01:26]}  Bf6 {[%clk 0:01:49]} 18. Rxe6 {[%clk 0:00:56]}  Kxe6 {[%clk 0:01:01]} 19. Qh3+ {[%clk 0:00:56]}  Kd6 {[%clk 0:00:55]} 20. Qg3+ {[%clk 0:00:18]}  Kc6 {[%clk 0:00:48]} 21. Rc1+ {[%clk 0:00:19]}  Kb6 {[%clk 0:00:26]} 22. Bh6 {[%clk 0:00:14]}  Rxg3 {[%clk 0:00:22]} 0-1


[Site "https://www.chess.com"]